bitfinex/quotes_BTCUSD_20250115
["timestamp","ask_amount","ask_price","bid_price","bid_amount"]
[1736902556179,0.00096076,97119.0,97118.0,0.90136192]
[1736902556788,0.00096076,97119.0,97118.0,0.88836192]
[1736902557184,0.00096076,97119.0,97118.0,0.89336192]
[1736902557972,0.00096076,97119.0,97118.0,0.5005]
[1736902558178,0.00096076,97119.0,97118.0,0.5095]
[1736902558384,0.00096076,97119.0,97118.0,0.5005]
[1736902558791,0.00096076,97119.0,97118.0,0.5045]
[1736902558934,0.01124133,97119.0,97118.0,0.4955]
[1736902559134,0.01124133,97119.0,97118.0,0.5035]
[1736902559553,0.01124133,97119.0,97118.0,0.5005]
[1736902559755,0.01124133,97119.0,97118.0,0.4985]
[1736902559963,0.01124133,97119.0,97118.0,0.5015]
[1736902560688,0.01124133,97119.0,97118.0,0.4985]
[1736902561098,0.01124133,97119.0,97118.0,0.4955]
[1736902561497,0.01124133,97119.0,97118.0,0.4995]
[1736902561695,0.01124133,97119.0,97118.0,0.4955]
[1736902563059,0.01124133,97119.0,97118.0,0.4097]
[1736902563265,0.01124133,97119.0,97118.0,0.4955]
[1736902563565,0.01124133,97119.0,97118.0,0.3124]
[1736902563935,0.25264133,97119.0,97118.0,0.3124]
[1736902564135,0.35686825,97119.0,97118.0,0.3124]
[1736902565008,0.35186825,97119.0,97118.0,0.18590521]
[1736902565210,1.59489825,97119.0,97118.0,0.15140521]
[1736902565409,1.87945117,97119.0,97118.0,0.15140521]
[1736902566023,1.88215117,97119.0,97118.0,0.08703861]
[1736902566225,1.88215117,97119.0,97118.0,0.00466261]
[1736902566427,1.88215117,97119.0,97081.0,0.0858]
[1736902566428,0.0142,97107.0,97084.0,0.0973]
[1736902566631,0.229,97087.0,97084.0,0.0973]
[1736902566803,0.206005,97085.0,97084.0,0.0973]
[1736902567014,0.229005,97085.0,97084.0,0.0973]
[1736902567216,0.379005,97085.0,97084.0,0.0973]
[1736902567819,0.379005,97085.0,97084.0,0.09779488]
[1736902568178,0.15,97085.0,97084.0,0.18359488]
[1736902568375,0.356005,97085.0,97084.0,0.49260488]
[1736902568603,0.15,97085.0,97084.0,0.49260488]
[1736902569490,0.205977,97098.0,97095.0,0.0858]
[1736902569725,0.00596,97096.0,97095.0,0.0858]
[1736902569904,0.00596,97096.0,97094.0,0.0973]
[1736902569905,0.355983,97095.0,97094.0,0.0973]
[1736902570112,0.378983,97095.0,97094.0,0.0973]
[1736902570308,0.03879797,97096.0,97084.0,0.3112966]
[1736902570309,0.206002,97086.0,97084.0,0.3112966]
[1736902570529,0.2702014,97086.0,97085.0,0.0858]
[1736902570696,0.2702014,97086.0,97085.0,0.39481]
[1736902570892,0.2702014,97086.0,97085.0,0.49211]
[1736902571075,0.2702014,97086.0,97085.0,0.39481]
[1736902571281,0.2863587,97086.0,97085.0,0.39481]
[1736902571690,0.0161573,97086.0,97085.0,0.49211]
[1736902576038,0.00596,97089.0,97085.0,0.49211]
[1736902576481,0.00596,97089.0,97088.0,0.0858]
[1736902576691,0.00596,97089.0,97088.0,0.3948]
[1736902577046,0.00596,97089.0,97088.0,0.4921]
[1736902577253,0.27171411,97089.0,97088.0,0.4063]
[1736902577466,0.27171411,97089.0,97088.0,0.309]
[1736902578091,0.42171411,97089.0,97088.0,0.4063]
[1736902578287,0.384956,97089.0,97088.0,0.4063]
[1736902579457,0.40111314,97089.0,97088.0,0.4063]
[1736902579757,0.17211714,97089.0,97088.0,0.4921]
[1736902585061,0.16615714,97089.0,97088.0,0.4921]
[1736902585257,0.17211714,97089.0,97088.0,0.4921]
[1736902586146,0.15596,97089.0,97088.0,0.3948]
[1736902586569,0.205987,97094.0,97088.0,0.5725]
[1736902586743,0.12240272,97098.0,97095.0,0.0858]
[1736902586946,0.00596,97096.0,97095.0,0.0858]
[1736902587113,0.15,97094.0,97088.0,0.4063]
[1736902587313,0.378996,97089.0,97088.0,0.309]
[1736902587524,1.13474992,97089.0,97088.0,0.309]
[1736902587723,1.18590192,97089.0,97088.0,0.309]
[1736902587950,1.02235892,97089.0,97088.0,0.309]
[1736902588152,1.03703384,97089.0,97088.0,0.309]
[1736902590156,1.12902983,97089.0,97088.0,0.309]
[1736902590860,1.03703384,97089.0,97088.0,0.309]
[1736902591448,0.97800784,97089.0,97088.0,0.309]
[1736902592026,0.93320084,97089.0,97088.0,0.309]
[1736902598897,0.97449084,97089.0,97088.0,0.309]
[1736902599503,1.43915784,97089.0,97088.0,0.30628]
[1736902599722,1.48513508,97089.0,97088.0,0.28581]
[1736902600933,1.64198763,97089.0,97088.0,0.28581]
[1736902601527,1.64198763,97089.0,97088.0,0.27834536]
[1736902601945,1.73398363,97089.0,97088.0,0.27834536]
[1736902602389,1.73398363,97089.0,97088.0,0.25961536]
[1736902603538,1.76125063,97089.0,97088.0,0.25961536]
[1736902603987,1.62975671,97089.0,97088.0,0.25961536]
[1736902604193,1.39976672,97089.0,97088.0,0.25961536]
[1736902605620,1.39976672,97089.0,97088.0,0.26140666]
[1736902606154,1.38360816,97089.0,97088.0,0.26140666]
[1736902607644,1.35183092,97089.0,97088.0,0.26140666]
[1736902607927,1.45605784,97089.0,97088.0,0.26140666]
[1736902608480,1.44185784,97089.0,97088.0,0.26140666]
[1736902608694,0.66824392,97089.0,97088.0,0.26140666]
[1736902608902,0.68514392,97089.0,97088.0,0.03380319]
[1736902609105,0.356043,97067.0,97059.0,0.0487]
[1736902609307,0.15,97061.0,97049.0,0.0487]
[1736902609504,0.379079,97050.0,97049.0,0.0487]
[1736902609707,0.48330592,97050.0,97049.0,0.0487]
[1736902610941,0.48330592,97050.0,97049.0,0.04883336]
[1736902611570,0.48330592,97050.0,97049.0,0.00013336]
[1736902611782,0.68007727,97050.0,97049.0,0.00013336]
[1736902613516,0.58753284,97050.0,97049.0,0.00013336]
[1736902614539,0.59799032,97050.0,97049.0,0.00013336]
[1736902615511,0.69053475,97050.0,97049.0,0.00013336]
[1736902616150,0.59799032,97050.0,97049.0,0.00013336]
[1736902617094,0.4937634,97050.0,97049.0,0.00013336]
[1736902617924,0.4937634,97050.0,97049.0,0.07993336]
[1736902618330,0.4937634,97050.0,97049.0,0.08078656]
[1736902621581,0.58630783,97050.0,97049.0,0.08078656]
[1736902622481,0.4937634,97050.0,97049.0,0.08078656]
[1736902622722,0.55109084,97050.0,97049.0,0.08078656]
[1736902627074,0.54513084,97050.0,97049.0,0.08078656]
[1736902627284,0.4997234,97050.0,97049.0,0.08078656]
[1736902627483,0.38953648,97050.0,97049.0,0.21268656]
[1736902627708,0.39549648,97050.0,97049.0,0.21268656]
[1736902627989,0.60362236,97050.0,97049.0,0.12688656]
[1736902630126,0.4997234,97050.0,97049.0,0.12688656]
[1736902630335,0.09254443,97055.0,97054.0,0.0858]
[1736902630584,0.09254443,97055.0,97054.0,0.3078]
[1736902630901,0.10304472,97055.0,97054.0,0.3078]
[1736902631504,0.01050029,97055.0,97054.0,0.3078]
[1736902631701,0.00179235,97057.0,97054.0,0.2292]
[1736902631940,0.00179235,97057.0,97056.0,0.1644]
[1736902632145,0.08325973,97057.0,97056.0,0.2617]
[1736902632317,0.00179235,97057.0,97056.0,0.2617]
[1736902634060,0.01201742,97057.0,97056.0,0.2617]
[1736902634269,0.00179235,97057.0,97056.0,0.2617]
[1736902643618,0.00379235,97057.0,97056.0,0.2617]
[1736902643966,0.00379235,97057.0,97056.0,0.2625536]
[1736902648144,0.25650831,97057.0,97056.0,0.0794536]
[1736902648330,0.25650831,97057.0,97056.0,0.1652536]
[1736902648527,0.17679235,97057.0,97056.0,0.1652536]
[1736902648739,0.15379235,97057.0,97056.0,0.1652536]
[1736902649266,0.15379235,97057.0,97056.0,0.2118536]
[1736902655187,0.17679235,97057.0,97056.0,0.2118536]
[1736902655426,0.17679235,97057.0,97056.0,0.1260536]
[1736902655624,0.36155001,97057.0,97056.0,0.0008536]
[1736902659374,0.84080301,97057.0,97056.0,0.0008536]
[1736902661385,0.66849201,97057.0,97056.0,0.0008536]
[1736902661638,0.36155001,97057.0,97056.0,0.0008536]
[1736902661861,0.61273001,97057.0,97056.0,0.0008536]
[1736902662290,0.59273001,97057.0,97056.0,0.0008536]
[1736902662531,0.52667601,97057.0,97056.0,0.0008536]
[1736902665093,0.46171301,97057.0,97056.0,0.0008536]
[1736902665271,0.36155001,97057.0,97056.0,0.0008536]
[1736902665618,0.48442401,97057.0,97056.0,0.0008536]
[1736902665789,0.36155001,97057.0,97056.0,0.0008536]
[1736902665987,0.637538,97057.0,97056.0,0.0008536]
[1736902666337,0.797109,97057.0,97056.0,0.0008536]
[1736902672807,0.52112101,97057.0,97056.0,0.0008536]
[1736902674614,0.79913491,97057.0,97056.0,0.0008536]
[1736902675223,0.52112101,97057.0,97056.0,0.0008536]
[1736902675433,0.00379235,97057.0,97056.0,0.2140536]
[1736902675655,0.00379235,97057.0,97056.0,0.3113536]
[1736902675863,0.31048649,97065.0,97064.0,0.3105]
[1736902676074,0.31048649,97065.0,97064.0,0.3621564]
[1736902676283,0.22389494,97080.0,97064.0,0.3621564]
[1736902676284,0.27797935,97067.0,97066.0,0.0973]
[1736902676452,0.27797935,97067.0,97066.0,0.51575699]
[1736902676663,0.27797935,97067.0,97066.0,0.51472692]
[1736902676864,0.27797935,97067.0,97066.0,0.56022764]
[1736902677067,0.14987935,97067.0,97066.0,0.56022764]
[1736902677505,0.12836272,97080.0,97079.0,0.0858]
[1736902677687,0.00596,97080.0,97079.0,0.0858]
[1736902677880,0.00596,97080.0,97079.0,0.1831]
[1736902678764,0.00596,97080.0,97079.0,0.18323336]
[1736902684097,0.00596,97080.0,97079.0,0.25976332]
[1736902684306,0.00596,97080.0,97079.0,0.31038976]
[1736902685367,0.12419445,97089.0,97088.0,0.1831]
[1736902685486,0.00179173,97089.0,97088.0,0.3066]
[1736902685734,0.00179173,97089.0,97088.0,0.41082692]
[1736902685977,0.00179173,97089.0,97088.0,0.45632764]
[1736902690103,0.00179173,97089.0,97088.0,0.41082692]
[1736902698569,0.00179173,97089.0,97088.0,0.51082692]
[1736902698782,0.000853,97118.0,97117.0,0.1831]
[1736902699171,0.000853,97118.0,97117.0,0.0858]
[1736902699310,0.03424664,97118.0,97117.0,0.0858]
[1736902699515,0.023853,97118.0,97117.0,0.0858]
[1736902699989,0.02434818,97118.0,97117.0,0.0858]
[1736902706243,0.02434818,97118.0,97116.0,0.0858]
[1736902706418,0.02434818,97118.0,97117.0,0.0858]
[1736902707172,0.023,97116.0,97113.0,0.0858]
[1736902707381,0.173,97114.0,97113.0,0.0858]
[1736902711677,0.023,97113.0,97105.0,0.0858]
[1736902711849,0.15,97105.0,97104.0,0.0858]
[1736902712024,0.15592,97105.0,97104.0,0.0858]
[1736902712610,0.361882,97105.0,97104.0,0.0858]
[1736902714727,0.36367393,97105.0,97104.0,0.0858]
[1736902717379,0.37376435,97105.0,97104.0,0.0858]
[1736902725341,0.37376435,97105.0,97089.0,0.0008533]
[1736902725342,0.023,97100.0,97090.0,0.0858]
[1736902725547,0.173,97099.0,97090.0,0.0858]
[1736902725946,0.15,97091.0,97090.0,0.0858]
[1736902726247,0.355994,97090.0,97089.0,0.0008533]
[1736902726464,0.5532483,97090.0,97089.0,0.0008533]
[1736902726610,0.48322092,97090.0,97089.0,0.0008533]
[1736902727046,0.57581646,97090.0,97089.0,0.0008533]
[1736902727460,0.47158954,97090.0,97089.0,0.0866533]
[1736902728085,0.378994,97090.0,97089.0,0.0866533]
[1736902729111,0.384914,97090.0,97089.0,0.0866533]
[1736902731444,0.39532859,97090.0,97089.0,0.0866533]
[1736902732310,0.38940859,97090.0,97089.0,0.0866533]
[1736902732509,0.37232859,97090.0,97089.0,0.0866533]
[1736902733743,0.36640859,97090.0,97089.0,0.1665533]
[1736902737838,0.16041459,97090.0,97089.0,0.1665533]
[1736902738114,0.16041459,97090.0,97089.0,0.2638533]
[1736902738969,0.16220652,97090.0,97089.0,0.2638533]
[1736902739787,0.01220652,97090.0,97089.0,0.2638533]
[1736902744827,0.0283632,97090.0,97089.0,0.2638533]
[1736902745231,0.01220652,97090.0,97089.0,0.2638533]
[1736902745670,0.01220652,97090.0,97089.0,0.0866533]
[1736902746047,0.01220652,97090.0,97089.0,0.1839533]
[1736902746824,0.07021657,97090.0,97089.0,0.0866533]
[1736902747558,0.01220652,97090.0,97089.0,0.0866533]
[1736902747759,0.16220652,97090.0,97089.0,0.0866533]
[1736902748267,0.17836404,97090.0,97089.0,0.0866533]
[1736902748477,0.27091256,97090.0,97089.0,0.0866533]
[1736902749584,0.25475504,97090.0,97089.0,0.0866533]
[1736902750058,0.16220652,97090.0,97089.0,0.0866533]
[1736902752178,0.16220652,97090.0,97089.0,0.0008533]
[1736902752179,0.01220652,97090.0,97089.0,0.0008533]
[1736902752386,0.11643344,97090.0,97089.0,0.0866533]
[1736902752892,0.01220652,97090.0,97089.0,0.0008533]
[1736902753096,0.01220652,97090.0,97089.0,0.0866533]
[1736902753295,0.01220652,97090.0,97089.0,0.0008533]
[1736902753495,0.01220652,97090.0,97089.0,0.0866533]
[1736902753943,0.13943344,97090.0,97089.0,0.0008533]
[1736902754307,0.24366036,97090.0,97089.0,0.0008533]
[1736902754520,0.47056036,97090.0,97089.0,0.0008533]
[1736902756009,0.80036036,97090.0,97089.0,0.0008533]
[1736902756613,0.72346036,97090.0,97089.0,0.0008533]
[1736902756982,0.73961832,97090.0,97089.0,0.0008533]
[1736902757183,0.6353914,97090.0,97089.0,0.0008533]
[1736902757390,0.53116448,97090.0,97089.0,0.0866533]
[1736902758483,0.36408448,97090.0,97089.0,0.1839533]
[1736902758677,0.34792652,97090.0,97089.0,0.1839533]
[1736902761853,0.01812652,97090.0,97089.0,0.1839533]
[1736902763714,0.01812652,97090.0,97089.0,0.0866533]
[1736902763928,0.25159578,97090.0,97089.0,0.0866533]
[1736902764139,0.25159578,97090.0,97089.0,0.0008533]
[1736902764335,0.25159578,97090.0,97089.0,0.0866533]
[1736902766147,0.56409852,97090.0,97089.0,0.0008533]
[1736902766329,0.67215852,97090.0,97089.0,0.0008533]
[1736902766882,0.4868827,97090.0,97089.0,0.0008533]
[1736902767304,0.5642827,97090.0,97089.0,0.0008533]
[1736902767936,0.8940827,97090.0,97089.0,0.0008533]
[1736902768427,0.81061344,97090.0,97089.0,0.0008533]
[1736902769834,0.73321344,97090.0,97089.0,0.0008533]
[1736902770237,0.7493721,97090.0,97089.0,0.0008533]
[1736902770998,0.7493721,97090.0,97089.0,0.0007853]
[1736902773470,0.7434521,97090.0,97089.0,0.0007853]
[1736902773674,0.7493721,97090.0,97089.0,0.0007853]
[1736902774275,0.85359902,97090.0,97089.0,0.0007853]
[1736902775364,0.7493721,97090.0,97089.0,0.0007853]
[1736902785682,0.7493721,97090.0,97071.0,0.0858]
[1736902785683,0.173,97089.0,97071.0,0.0858]
[1736902785882,0.173,97089.0,97067.0,0.0981535]
[1736902785883,0.229032,97072.0,97070.0,0.0858]
[1736902786120,0.27722692,97071.0,97070.0,0.0858]
[1736902787151,0.50893324,97071.0,97070.0,0.08593336]
[1736902787305,0.61316016,97071.0,97070.0,0.08593336]
[1736902787521,0.61316016,97071.0,97070.0,0.00013336]
[1736902787879,0.38145384,97071.0,97070.0,0.08593336]
[1736902788113,0.38145384,97071.0,97070.0,0.00013336]
[1736902788850,0.71125384,97071.0,97070.0,0.00013336]
[1736902789279,0.72741507,97071.0,97070.0,0.08593336]
[1736902790071,0.95904651,97071.0,97070.0,0.08593336]
[1736902790415,0.94288528,97071.0,97070.0,0.08593336]
[1736902792557,0.9530723,97071.0,97070.0,0.08593336]
[1736902793632,0.96923334,97071.0,97070.0,0.08593336]
[1736902793985,0.7376019,97071.0,97070.0,0.08593336]
[1736902796143,0.72144086,97071.0,97070.0,0.08593336]
[1736902799200,0.90664719,97071.0,97070.0,0.08678696]
[1736902799407,0.92280819,97071.0,97070.0,0.08678696]
[1736902799712,0.96410119,97071.0,97070.0,0.08678696]
[1736902800068,0.96410119,97071.0,97070.0,0.00098696]
[1736902800267,0.85938427,97071.0,97070.0,0.00098696]
[1736902800466,1.39349627,97071.0,97070.0,0.00098696]
[1736902800691,0.4798,97069.0,97067.0,0.0008535]
[1736902800896,0.82344516,97068.0,97067.0,0.0008535]
[1736902802282,0.206064,97057.0,97047.0,0.0858]
[1736902802486,1.12269462,97057.0,97043.0,0.0858]
[1736902802708,1.35557486,97057.0,97043.0,0.0858]
[1736902803545,1.35557486,97057.0,97035.0,0.046]
[1736902803772,0.15,97049.0,97032.0,0.0858]
[1736902803981,0.023,97056.0,97028.0,0.00038055]
[1736902803982,0.0711,97043.0,97028.0,0.00038055]
[1736902804188,0.0711,97043.0,97020.0,0.00157332]
[1736902804189,0.15,97024.0,97020.0,0.00157332]
[1736902804394,0.37914,97021.0,97020.0,0.00119277]
[1736902804592,0.48336692,97021.0,97020.0,0.00119277]
[1736902804953,0.81316692,97021.0,97020.0,0.00119277]
[1736902805185,1.06658921,97021.0,97020.0,0.00119277]
[1736902805602,1.06663864,97021.0,97020.0,0.00119277]
[1736902806234,1.0771414,97021.0,97020.0,0.00119277]
[1736902806866,1.0771414,97021.0,97020.0,9.277e-05]
[1736902807073,1.16951038,97021.0,97020.0,9.277e-05]
[1736902808189,1.06698809,97021.0,97020.0,9.277e-05]
[1736902808404,1.05393209,97021.0,97020.0,9.277e-05]
[1736902808623,0.83988863,97021.0,97020.0,9.277e-05]
[1736902809501,1.04941263,97021.0,97020.0,9.277e-05]
[1736902810108,0.83988863,97021.0,97020.0,9.277e-05]
[1736902810350,0.84580863,97021.0,97020.0,9.277e-05]
[1736902810731,0.93085287,97021.0,97020.0,9.277e-05]
[1736902812029,1.59167587,97021.0,97020.0,9.277e-05]
[1736902812235,1.53735787,97021.0,97020.0,9.277e-05]
[1736902812409,1.01523063,97021.0,97020.0,9.277e-05]
[1736902812638,0.84580863,97021.0,97020.0,9.277e-05]
[1736902813048,1.20201211,97021.0,97020.0,9.277e-05]
[1736902813848,1.27971211,97021.0,97020.0,9.277e-05]
[1736902814259,0.356157,97013.0,97012.0,0.00179277]
[1736902814618,0.356157,97013.0,96997.0,0.09909319]
[1736902814619,0.15,96999.0,96998.0,0.08724324]
[1736902814800,0.173,96999.0,96998.0,0.08724324]
[1736902816164,0.023,96998.0,96997.0,0.00179319]
[1736902816366,0.385109,96998.0,96997.0,0.08323081]
[1736902816565,0.48933592,96998.0,96997.0,0.00179319]
[1736902818216,0.50550829,96998.0,96997.0,0.00179319]
[1736902818909,0.83530829,96998.0,96997.0,0.00179319]
[1736902819114,0.86580201,96998.0,96997.0,0.00179319]
[1736902820963,0.87638668,96998.0,96997.0,0.00179319]
[1736902822185,0.84589296,96998.0,96997.0,0.00179319]
[1736902822964,0.83151483,96998.0,96997.0,0.00179319]
[1736902823859,1.55587183,96998.0,96997.0,0.00179319]
[1736902826332,1.13615092,96981.0,96980.0,0.87366013]
[1736902827522,1.13615092,96981.0,96980.0,0.87246013]
[1736902827723,1.14467796,96981.0,96980.0,0.87246013]
[1736902827927,1.1550428,96981.0,96980.0,0.87246013]
[1736902828397,1.08495776,96981.0,96980.0,0.87246013]
[1736902829211,1.08495776,96981.0,96980.0,0.87126013]
[1736902829778,0.82953676,96981.0,96980.0,0.87126013]
[1736902829937,1.12781476,96981.0,96980.0,0.87126013]
[1736902830585,1.13807029,96981.0,96980.0,0.87126013]
[1736902830787,0.84571229,96981.0,96980.0,0.87126013]
[1736902832740,0.87713156,96981.0,96980.0,0.87126013]
[1736902832991,0.86095603,96981.0,96980.0,0.87126013]
[1736902833355,0.80653676,96981.0,96980.0,0.87126013]
[1736902834886,0.80653676,96981.0,96980.0,1.09669775]
[1736902834887,0.34016484,96981.0,96980.0,1.09669775]
[1736902835093,0.34016484,96981.0,96980.0,1.17565215]
[1736902835094,0.01036484,96981.0,96980.0,1.17565215]
[1736902835427,0.00179424,96998.0,96997.0,0.25683762]
[1736902835546,0.01239706,96998.0,96997.0,0.25683762]
[1736902835748,0.00179424,96998.0,96997.0,0.25683762]
[1736902846507,0.00179424,96998.0,96997.0,0.56106454]
[1736902852209,0.00179424,96998.0,96997.0,0.15953762]
[1736902852420,0.00179424,96998.0,96997.0,0.25683762]
[1736902857045,0.00179424,96998.0,96997.0,0.46106454]
[1736902858693,0.00179424,96998.0,96997.0,0.56106454]
[1736902858897,0.0920573,97036.0,97035.0,0.08143762]
[1736902859102,0.12257435,97040.0,97036.0,0.08143762]
[1736902859103,0.00592,97037.0,97036.0,0.08143762]
[1736902859258,0.00592,97037.0,97036.0,0.17823762]
[1736902859672,0.15592,97037.0,97036.0,0.17823762]
[1736902859874,0.00592,97037.0,97036.0,0.17823762]
[1736902860078,0.00592,97037.0,97036.0,0.17838555]
[1736902860682,0.00592,97037.0,97036.0,0.08108555]
[1736902860885,0.00592,97037.0,97036.0,0.17838555]
[1736902861094,0.00592,97037.0,97036.0,0.08108555]
[1736902862274,0.00592,97037.0,97036.0,0.17838555]
[1736902864082,0.00592,97037.0,97036.0,0.25898555]
[1736902865439,0.00592,97037.0,97036.0,0.17838555]
[1736902865939,0.14079738,97041.0,97036.0,0.17838555]
[1736902866185,0.14671738,97041.0,97040.0,0.17773762]
[1736902867513,0.14079738,97041.0,97040.0,0.17773762]
[1736902869866,0.142591,97041.0,97040.0,0.17773762]
[1736902870471,0.148511,97041.0,97040.0,0.17773762]
[1736902871943,0.16467632,97041.0,97040.0,0.17773762]
[1736902872539,0.15875632,97041.0,97040.0,0.17773762]
[1736902872749,0.36485432,97041.0,97040.0,0.17773762]
[1736902872945,0.348689,97041.0,97040.0,0.17773762]
[1736902873869,0.142591,97041.0,97040.0,0.17773762]
[1736902874789,0.19971028,97041.0,97040.0,0.17773762]
[1736902874940,0.142591,97041.0,97040.0,0.17773762]
[1736902875950,0.15875648,97041.0,97040.0,0.17773762]
[1736902876175,0.16467648,97041.0,97040.0,0.17773762]
[1736902876370,0.148511,97041.0,97040.0,0.17773762]
[1736902876692,0.142591,97041.0,97040.0,0.30743762]
[1736902876891,0.142591,97041.0,97040.0,0.38960633]
[1736902876892,0.00179362,97041.0,97040.0,0.38960633]
[1736902877093,0.00179362,97041.0,97040.0,0.49383325]
[1736902877270,0.00179362,97041.0,97040.0,0.41166454]
[1736902877477,0.00179362,97041.0,97040.0,0.51166454]
[1736902878274,0.00179362,97041.0,97040.0,0.61166454]
[1736902879114,0.12257435,97080.0,97066.0,0.17773762]
[1736902879297,0.00592,97077.0,97066.0,0.54125638]
[1736902880093,0.01033069,97076.0,97066.0,0.54125638]
[1736902880299,0.00592,97077.0,97066.0,0.54140431]
[1736902881049,0.00592,97077.0,97066.0,0.54080431]
[1736902881761,0.12257435,97080.0,97066.0,0.54080431]
[1736902881972,0.01027379,97080.0,97066.0,0.64503123]
[1736902882186,0.00592,97087.0,97066.0,0.74503123]
[1736902882391,0.00179257,97089.0,97066.0,0.74503123]
[1736902882392,0.01035242,97083.0,97066.0,0.74503123]
[1736902882834,0.12257435,97080.0,97066.0,0.74503123]
[1736902883985,0.12257435,97080.0,97066.0,0.71725747]
[1736902885645,0.00179257,97089.0,97066.0,0.71725747]
[1736902886117,0.00179257,97089.0,97066.0,0.81725747]
[1736902889522,0.00179257,97089.0,97066.0,0.82739666]
[1736902891497,0.0161572,97080.0,97066.0,0.82739666]
[1736902891701,0.00179257,97089.0,97066.0,0.82739666]
[1736902891900,0.01615731,97083.0,97066.0,0.82739666]
[1736902893009,0.00179257,97089.0,97066.0,1.13646666]
[1736902896049,0.00179257,97089.0,97066.0,1.24516666]
[1736902896250,0.00179257,97089.0,97066.0,1.61216666]
[1736902897207,0.0161566,97085.0,97084.0,0.58314462]
[1736902897413,0.00179257,97089.0,97088.0,0.27713762]
[1736902897536,0.00179257,97089.0,97088.0,0.77146454]
[1736902898147,0.00179257,97089.0,97088.0,0.87146454]
[1736902901158,0.00179257,97089.0,97088.0,0.89253952]
[1736902902146,0.00179257,97089.0,97088.0,0.90300398]
[1736902906662,0.00179257,97089.0,97088.0,0.80300398]
[1736902908325,0.00179257,97089.0,97088.0,0.79253952]
[1736902911712,0.00179257,97089.0,97088.0,0.89253952]
[1736902914294,0.00179257,97089.0,97088.0,1.02413952]
[1736902914467,0.00179257,97089.0,97088.0,1.07353952]
[1736902914468,5.7e-07,97089.0,97088.0,1.07353952]
[1736902915078,5.3e-07,97095.0,97094.0,0.98952262]
[1736902915291,5.3e-07,97095.0,97094.0,1.72842954]
[1736902919507,5.3e-07,97095.0,97094.0,1.86635845]
[1736902920058,5.3e-07,97095.0,97094.0,1.73475845]
[1736902920461,5.3e-07,97095.0,97094.0,1.59682954]
[1736902921361,5.3e-07,97095.0,97094.0,1.60582954]
[1736902921547,5.3e-07,97095.0,97094.0,1.59682954]
[1736902921874,4.6e-07,97105.0,97104.0,0.70283762]
[1736902922033,4.6e-07,97105.0,97104.0,2.3474623]
[1736902922411,9.2e-07,97120.0,97119.0,0.37713762]
[1736902922593,5.1e-07,97139.0,97125.0,0.37713762]
[1736902922822,5.1e-07,97139.0,97138.0,0.71326454]
[1736902923021,0.00049578,97139.0,97138.0,1.02210454]
[1736902923262,0.00049578,97139.0,97138.0,1.0489779]
[1736902923692,7.8e-07,97139.0,97138.0,1.2485984]
[1736902924290,0.00179277,97165.0,97138.0,1.2485984]
[1736902924291,4e-07,97144.0,97143.0,1.58793762]
[1736902924627,4e-07,97144.0,97143.0,1.84429485]
[1736902924896,4e-07,97144.0,97143.0,2.09381623]
[1736902926085,4e-07,97144.0,97143.0,2.07693104]
[1736902926287,4e-07,97144.0,97143.0,2.12403104]
[1736902926671,4e-07,97144.0,97143.0,2.13303104]
[1736902926894,4e-07,97144.0,97143.0,2.04131623]
[1736902927123,4e-07,97144.0,97143.0,2.03231623]
[1736902927468,4e-07,97144.0,97143.0,2.04131623]
[1736902927669,4e-07,97144.0,97143.0,2.03231623]
[1736902928045,4e-07,97144.0,97143.0,2.04131623]
[1736902928450,4e-07,97144.0,97143.0,2.04723623]
[1736902928650,7.5e-07,97159.0,97158.0,0.52653762]
[1736902928814,7.5e-07,97159.0,97158.0,1.1952679]
[1736902929536,7.5e-07,97159.0,97158.0,1.5209679]
[1736902929896,7.5e-07,97159.0,97158.0,1.3012679]
[1736902930249,7.5e-07,97159.0,97158.0,1.4979679]
[1736902931416,7.5e-07,97159.0,97158.0,1.33080192]
[1736902931540,7.5e-07,97159.0,97158.0,1.52868202]
[1736902931778,7.5e-07,97159.0,97158.0,1.37868202]
[1736902931978,7.5e-07,97159.0,97158.0,1.38768202]
[1736902932119,7.5e-07,97159.0,97158.0,1.37868202]
[1736902933066,7.5e-07,97159.0,97158.0,1.34162856]
[1736902933700,7.5e-07,97159.0,97158.0,1.35062856]
[1736902933886,7.5e-07,97159.0,97158.0,1.32109454]
[1736902934133,7.5e-07,97159.0,97158.0,1.33009454]
[1736902934527,7.5e-07,97159.0,97158.0,1.32109454]
[1736902934758,7.5e-07,97159.0,97158.0,1.33009454]
[1736902935199,7.5e-07,97159.0,97158.0,1.32109454]
[1736902935417,7.5e-07,97159.0,97158.0,1.33009454]
[1736902935611,7.5e-07,97159.0,97158.0,1.00439454]
[1736902937284,7.5e-07,97159.0,97158.0,0.99539454]
[1736902937560,0.01614384,97159.0,97158.0,0.99539454]
[1736902937763,0.01614384,97159.0,97158.0,1.00439454]
[1736902937945,0.01614384,97159.0,97158.0,0.99539454]
[1736902938348,0.01614384,97159.0,97158.0,1.00439454]
[1736902938926,0.01614384,97159.0,97158.0,0.99539454]
[1736902939156,0.01608048,97159.0,97158.0,0.99539454]
[1736902939382,0.01693368,97159.0,97158.0,0.99539454]
[1736902940332,0.01693368,97159.0,97158.0,0.49284454]
[1736902940538,0.09453368,97159.0,97158.0,0.49431762]
[1736902940740,0.13545523,97159.0,97158.0,0.31778]
[1736902940942,0.28545523,97159.0,97158.0,0.31778]
[1736902941144,0.50315905,97159.0,97158.0,0.30878]
[1736902941353,0.50315905,97159.0,97158.0,0.05258]
[1736902941354,0.80055305,97159.0,97158.0,0.05258]
[1736902941555,0.72523205,97159.0,97158.0,0.05688]
[1736902941780,0.0081532,97159.0,97158.0,0.23341762]
[1736902941953,0.0008532,97159.0,97158.0,0.22841762]
[1736902943187,0.0008532,97159.0,97158.0,0.43264454]
[1736902943725,0.0018532,97159.0,97158.0,0.53264454]
[1736902943953,0.0008532,97159.0,97158.0,0.53264454]
[1736902944359,0.0008532,97159.0,97158.0,0.54164454]
[1736902944558,0.0008532,97159.0,97158.0,0.46209032]
[1736902944853,0.0008532,97159.0,97158.0,0.14858]
[1736902945054,0.0008532,97159.0,97158.0,0.23741762]
[1736902945262,0.0008532,97159.0,97158.0,0.22841762]
[1736902946673,0.0008532,97159.0,97158.0,0.23741762]
[1736902947237,0.0008532,97159.0,97158.0,0.14858]
[1736902947436,0.05119985,97159.0,97158.0,0.05188]
[1736902947647,0.05119985,97159.0,97158.0,0.15758]
[1736902948268,0.05119985,97159.0,97158.0,0.14858]
[1736902948647,0.0008532,97159.0,97158.0,0.23041762]
[1736902950357,0.0008532,97159.0,97158.0,0.22841762]
[1736902950775,0.0008532,97159.0,97158.0,0.23041762]
[1736902950976,0.0008532,97159.0,97158.0,0.22841762]
[1736902951337,0.0008532,97159.0,97158.0,0.23341762]
[1736902951552,0.0008532,97159.0,97158.0,0.23520913]
[1736902955491,0.01699778,97159.0,97158.0,0.23520913]